fUST/lending_fUST_20250819
["ID","MTS","AMOUNT","RATE_DAILY","PERIOD"]
[380190984,1755602510317,302.51602579,0.000189,2]
[380190985,1755602527003,175.40319121,0.000189,2]
[380190987,1755602643323,480.0,0.00027945,120]
[380190988,1755602650628,250.0,0.00018873,2]
[380190990,1755602693046,500.0,0.00018621,2]
[380190991,1755602711272,926.9822558,0.00018233,2]
[380190996,1755602808661,159.28441504,0.00018975,2]
[380190997,1755602809047,159.28441503,0.00019,2]
[380190998,1755602828159,150.0,0.000189,2]
[380190999,1755602829976,158.740472,0.00018505,2]
[380191000,1755602830321,301.73660682,0.00018506,2]
[380191001,1755602842321,171.18194807,0.00018975,2]
[380191002,1755602847299,171.18194806,0.00019026,2]
[380191003,1755602859105,250.0,0.00028,120]
[380191004,1755602873434,2651.09473248,0.00018,2]
[380191005,1755602873460,10000.0,0.00018,2]
[380191006,1755602873486,10000.0,0.00018,2]
[380191007,1755602873513,10000.0,0.00018,2]
[380191008,1755602873542,10000.0,0.00018,2]
[380191009,1755602873581,10000.0,0.00018,2]
[380191010,1755602873620,10000.0,0.00018,2]
[380191011,1755602873660,3447.01458266,0.00018,2]
[380191012,1755602877375,4554.22251245,0.00018,2]
[380191013,1755602880090,1000.72880053,0.0001,2]
[380191014,1755602882854,998.03410436,0.00019044,2]
[380191015,1755602882879,1697.83620855,0.00019044,2]
[380191017,1755602889923,400.0,0.00028767,120]
[380191018,1755602896545,416.78962204,0.00010618,2]
[380191019,1755602898456,7885.37416941,0.000125,2]
[380191020,1755602898480,3542.46511107,0.000125,2]
[380191021,1755602899098,2304.12968709,0.00019044,2]
[380191023,1755602911683,283.8160048,0.0001,2]
[380191024,1755602914724,3869.58919704,0.00019044,2]
[380191025,1755602914748,1130.41080296,0.00019044,2]
[380191026,1755602916644,8869.58919704,0.00017,2]
[380191027,1755602916667,10000.0,0.00017,2]
[380191028,1755602916688,10000.0,0.00017,2]
[380191029,1755602916711,10000.0,0.00017,2]
[380191030,1755602916732,10000.0,0.00017,2]
[380191031,1755602916754,10000.0,0.00017,2]
[380191032,1755602916780,10000.0,0.00017,2]
[380191033,1755602916802,8105.2458889,0.00017,2]
[380191034,1755602919537,1894.7541111,0.00018,2]
[380191035,1755602919559,10000.0,0.00018,2]
[380191036,1755602919580,10000.0,0.00018,2]
[380191037,1755602919601,3440.35077556,0.00018,2]
[380191038,1755602920793,582.99639939,0.000149,2]
[380191039,1755602920873,1000.0,0.0001,2]
[380191040,1755602921879,4976.65282505,0.00018,2]
[380191041,1755602921902,10000.0,0.00018,2]
[380191042,1755602921925,10000.0,0.00018,2]
[380191043,1755602921949,4428.37549959,0.00018,2]
[380191044,1755602922827,5000.0,0.00019044,2]
[380191045,1755602926499,571.62450041,0.0001,2]
[380191046,1755602926521,10000.0,0.0001,2]
[380191047,1755602926544,193.00006305,0.0001,2]
[380191048,1755602928531,9806.99993695,0.00018,2]
[380191049,1755602928555,10000.0,0.00018,2]
[380191050,1755602928580,10000.0,0.00018,2]
[380191051,1755602928604,20000.0,0.00018,2]
[380191052,1755602928628,20000.0,0.00018,2]
[380191053,1755602928651,20000.0,0.00018,2]
[380191054,1755602928674,20000.0,0.00018,2]
[380191055,1755602928697,20000.0,0.00018,2]
[380191056,1755602928721,20000.0,0.00018,2]
[380191057,1755602928745,20000.0,0.00018,2]
[380191058,1755602928769,20000.0,0.00018,2]
[380191059,1755602928798,20000.0,0.00018,2]
[380191060,1755602928822,20000.0,0.00018,2]
[380191061,1755602928845,20000.0,0.00018,2]
[380191062,1755602928870,20000.0,0.00018,2]
[380191063,1755602928894,9135.39753352,0.00018,2]
[380191064,1755602931352,5000.0,0.00019,2]
[380191065,1755602939488,5000.0,0.00019,2]
[380191066,1755602944752,864.60246648,0.00015068,2]
[380191067,1755602944776,1135.39753352,0.00015068,2]
[380191068,1755602944808,502.79175507,0.00016164,2]
[380191069,1755602950419,10000.0,0.00018086,2]
[380191070,1755602950740,5000.0,0.00019,2]
[380191071,1755602958178,3361.81071141,0.00019,2]
[380191072,1755602958201,20000.0,0.00019,2]
[380191073,1755602958224,20000.0,0.00019,2]
[380191074,1755602958247,598.82928859,0.00019,2]
[380191075,1755602959520,5000.0,0.00019,2]
[380191076,1755602967652,5000.0,0.00019,2]
[380191077,1755602970034,1000.0,0.00018086,2]
[380191078,1755602972149,165.070814,0.00018972,2]
[380191079,1755602976186,5000.0,0.00019,2]
[380191080,1755602980540,3236.09989741,0.00019,2]
[380191081,1755602980563,20000.0,0.00019,2]
[380191082,1755602980585,233.31010259,0.00019,2]
[380191083,1755602985330,926.70621488,0.00019,2]
[380191084,1755602995249,5000.0,0.00019,2]
[380191086,1755603003112,3528.862663,0.00018371,2]
[380191087,1755603003755,5000.0,0.00019,2]
[380191088,1755603007369,170.913837,0.00018261,2]
[380191089,1755603007602,170.913837,0.00018261,61]
[380191090,1755603007854,170.913837,0.00018261,120]
[380191091,1755603012936,5000.0,0.00019,2]
[380191092,1755603021215,140.20718253,0.00019,2]
[380191093,1755603021238,3033.61812934,0.00019,2]
[380191094,1755603029575,5000.0,0.00019,2]
[380191110,1755603032502,-300.0,0.00019061,2]
[380191111,1755603032511,-300.0,0.00019062,2]
[380191112,1755603032520,-172.09889348,0.00019062,2]
[380191113,1755603032531,-127.90110652,0.00019062,2]
[380191114,1755603032540,-300.0,0.00019062,2]
[380191115,1755603032549,-300.0,0.00019062,2]
[380191116,1755603032559,-1200.0,0.00019062,2]
[380191117,1755603032569,-22562.95542726,0.00019063,2]
[380191118,1755603032580,-1545.16660281,0.00019072,2]
[380191119,1755603032589,-1200.0,0.00019075,2]
[380191120,1755603032598,-2988.53750497,0.00019077,2]
[380191122,1755603032607,-3900.0,0.00019078,2]
[380191124,1755603032616,-7601.32653385,0.00019078,2]
[380191126,1755603032626,-298.82515166,0.00019078,2]
[380191128,1755603032635,-1002.48060035,0.00019099,2]
[380191130,1755603032644,-160.0,0.000191,2]
[380191132,1755603032653,-3600.0,0.000191,5]
[380191134,1755603032663,-1500.0,0.000191,2]
[380191136,1755603032672,-50000.0,0.000191,2]
[380191138,1755603032681,-500.0,0.00019126,2]
[380191140,1755603032690,-500.0,0.00019126,2]
[380191142,1755603032700,-1545.1666028,0.00019142,2]
[380191144,1755603032710,-1854.63380227,0.00019154,2]
[380191146,1755603032719,-401.06,0.00019164,3]
[380191148,1755603032728,-896.18,0.00019164,3]
[380191150,1755603032739,-448.09,0.00019164,3]
[380191151,1755603032748,-224.05,0.00019164,3]
[380191153,1755603032758,-672.17,0.00019164,3]
[380191155,1755603032768,-1000.0,0.00019166,2]
[380191157,1755603032778,-1000.0,0.00019166,2]
[380191159,1755603032787,-1037.37863873,0.00019166,2]
[380191161,1755603032796,-151.0,0.00019166,2]
[380191163,1755603032810,-300.0,0.00019166,2]
[380191165,1755603032830,-300.0,0.00019166,2]
[380191167,1755603032840,-151.0,0.00019166,2]
[380191169,1755603032850,-302.64365837,0.00019166,2]
[380191171,1755603032859,-151.0,0.00019166,2]
[380191173,1755603032869,-151.0,0.00019166,2]
[380191175,1755603032877,-151.0,0.00019166,2]
[380191177,1755603032887,-151.0,0.00019166,2]
[380191179,1755603032896,-151.0,0.00019166,2]
[380191181,1755603032905,-151.0,0.00019166,2]
[380191183,1755603032915,-17842.522448,0.00019166,2]
[380191185,1755603032924,-151.0,0.00019166,2]
[380191187,1755603032933,-151.0,0.00019166,2]
[380191189,1755603032943,-151.0,0.00019166,2]
[380191191,1755603032952,-156.04189223,0.00019166,2]
[380191193,1755603032962,-463.32,0.00019168,3]
[380191195,1755603032971,-208.924812,0.00019171,10]
[380191197,1755603032980,-500.0,0.00019173,2]
[380191199,1755603032989,-500.0,0.00019173,2]
[380191201,1755603032998,-177.72858975,0.00019173,2]
[380191203,1755603033008,-500.0,0.00019173,2]
[380191205,1755603033018,-500.0,0.00019173,2]
[380191207,1755603033028,-500.0,0.00019173,2]
[380191209,1755603033037,-500.5730939,0.00019173,2]
[380191211,1755603033046,-500.0,0.00019173,2]
[380191213,1755603033056,-501.42275955,0.00019173,2]
[380191215,1755603033066,-402.79345135,0.00019173,2]
[380191217,1755603033076,-500.0,0.00019173,2]
[380191219,1755603033086,-500.0,0.00019173,2]
[380191221,1755603033095,-500.0,0.00019173,2]
[380191223,1755603033106,-500.0,0.00019173,2]
[380191225,1755603033115,-500.0,0.00019173,2]
[380191227,1755603033125,-500.0,0.00019173,2]
[380191229,1755603033135,-16077.1628871,0.00019175,3]
[380191231,1755603033144,-12685.85563623,0.00019175,3]
[380191233,1755603033154,-528.6845513,0.00019175,3]
[380191235,1755603033163,-215.79176414,0.00019175,3]
[380191237,1755603033174,-500.0,0.00019176,2]
[380191239,1755603033183,-1000.0,0.00019177,2]
[380191241,1755603033193,-1843.39395155,0.00019178,2]
[380191243,1755603033203,-480.0,0.00019178,2]
[380191245,1755603033212,-480.0,0.00019178,2]
[380191247,1755603033222,-480.0,0.00019178,2]
[380191249,1755603033231,-441.474321,0.00019178,2]
[380191251,1755603033241,-480.0,0.00019178,2]
[380191252,1755603033251,-480.0,0.00019178,2]
[380191253,1755603033260,-480.0,0.00019178,2]
[380191254,1755603033270,-480.0,0.00019178,2]
[380191255,1755603033279,-480.0,0.00019178,2]
[380191256,1755603033289,-480.0,0.00019178,2]
[380191257,1755603033298,-480.0,0.00019178,2]
[380191258,1755603033308,-480.0,0.00019178,2]
[380191259,1755603033318,-480.0,0.00019178,2]
[380191260,1755603033328,-480.0,0.00019178,2]
[380191261,1755603033337,-462.04283562,0.00019178,2]
[380191262,1755603033347,-480.0,0.00019178,2]
[380191263,1755603033357,-480.0,0.00019178,2]
[380191264,1755603033367,-480.0,0.00019178,2]
[380191265,1755603033377,-480.0,0.00019178,2]
[380191266,1755603033386,-480.0,0.00019178,2]
[380191267,1755603033395,-480.0,0.00019178,2]
[380191268,1755603033405,-480.0,0.00019178,2]
[380191269,1755603033415,-480.0,0.00019178,2]
[380191270,1755603033425,-234.19080196,0.00019178,2]
[380191271,1755603033434,-480.0,0.00019178,2]
[380191272,1755603033443,-480.0,0.00019178,2]
[380191273,1755603033452,-480.0,0.00019178,2]
[380191274,1755603033463,-159.16002101,0.00019178,2]
[380191275,1755603033473,-480.0,0.00019178,2]
[380191276,1755603033482,-460.0,0.00019178,2]
[380191277,1755603033491,-571.1691554,0.00019178,2]
[380191278,1755603033502,-363.88838292,0.00019178,2]
[380191279,1755603033511,-480.0,0.00019178,2]
[380191280,1755603033521,-607.52737369,0.00019178,2]
[380191281,1755603033531,-460.0,0.00019178,2]
[380191282,1755603033541,-480.0,0.00019178,2]
[380191283,1755603033551,-387.60767719,0.00019178,2]
[380191284,1755603033561,-480.0,0.00019178,2]
[380191285,1755603033570,-480.0,0.00019178,2]
[380191286,1755603033581,-480.0,0.00019178,2]
[380191287,1755603033590,-480.0,0.00019178,2]
[380191288,1755603033600,-460.78794435,0.00019178,2]
[380191289,1755603033609,-444.30524327,0.00019178,2]
[380191290,1755603033618,-460.59057685,0.00019178,2]
[380191292,1755603033628,-347.62157745,0.00019178,2]
[380191294,1755603033639,-165.15287875,0.00019178,2]
[380191296,1755603033648,-480.0,0.00019178,2]
[380191298,1755603033659,-480.0,0.00019178,2]
[380191300,1755603033668,-480.0,0.00019178,2]
[380191302,1755603033677,-481.32303006,0.00019178,2]
[380191304,1755603033686,-480.0,0.00019178,2]
[380191306,1755603033696,-480.0,0.00019178,2]
[380191307,1755603033705,-480.0,0.00019178,2]
[380191309,1755603033721,-480.0,0.00019178,2]
[380191311,1755603033741,-480.0,0.00019178,2]
[380191314,1755603033751,-480.0,0.00019178,2]
[380191315,1755603033760,-461.47091946,0.00019178,2]
[380191317,1755603033770,-480.0,0.00019178,2]
[380191319,1755603033780,-398.38894,0.00019178,2]
[380191321,1755603033790,-475.4357367,0.00019178,2]
[380191323,1755603033800,-480.0,0.00019178,2]
[380191325,1755603033810,-618.16571935,0.00019178,2]
[380191327,1755603033821,-480.0,0.00019178,2]
[380191329,1755603033832,-480.0,0.00019178,2]
[380191331,1755603033842,-490.15048165,0.00019178,2]
[380191333,1755603033853,-420.7613972,0.00019178,2]
[380191335,1755603033863,-480.0,0.00019178,2]
[380191337,1755603033874,-480.0,0.00019178,2]
[380191339,1755603033884,-480.0,0.00019178,2]
[380191341,1755603033895,-480.0,0.00019178,2]
[380191343,1755603033905,-620.0,0.00019178,2]
[380191345,1755603033915,-480.0,0.00019178,2]
[380191346,1755603033926,-480.0,0.00019178,2]
[380191347,1755603033935,-618.05908602,0.00019178,2]
[380191348,1755603033945,-480.0,0.00019178,2]
[380191349,1755603033954,-480.0,0.00019178,2]
[380191350,1755603033964,-480.0,0.00019178,2]
[380191352,1755603033974,-480.0,0.00019178,2]
[380191354,1755603033985,-480.0,0.00019178,2]
[380191355,1755603033995,-461.36449037,0.00019178,2]
[380191356,1755603034006,-480.0,0.00019178,2]
[380191362,1755603034112,-480.0,0.00019178,2]
[380191363,1755603034123,-480.0,0.00019178,2]
[380191364,1755603034133,-480.0,0.00019178,2]
[380191365,1755603034144,-480.0,0.00019178,2]
[380191366,1755603034154,-400.0,0.00019178,2]
[380191367,1755603034164,-480.0,0.00019178,2]
[380191368,1755603034174,-460.32578701,0.00019178,2]
[380191369,1755603034184,-480.0,0.00019178,2]
[380191370,1755603034193,-400.0,0.00019178,2]
[380191371,1755603034203,-480.0,0.00019178,2]
[380191372,1755603034212,-480.0,0.00019178,2]
[380191373,1755603034224,-480.0,0.00019178,2]
[380191374,1755603034233,-1000.0,0.00019178,2]
[380191375,1755603034244,-480.0,0.00019178,2]
[380191376,1755603034254,-480.0,0.00019178,2]
[380191377,1755603034264,-480.0,0.00019178,2]
[380191378,1755603034273,-421.67362539,0.00019178,2]
[380191379,1755603034283,-480.0,0.00019178,2]
[380191380,1755603034293,-480.0,0.00019178,2]
[380191381,1755603034302,-480.0,0.00019178,2]
[380191382,1755603034312,-480.0,0.00019178,2]
[380191383,1755603034322,-480.0,0.00019178,2]
[380191384,1755603034332,-480.0,0.00019178,2]
[380191385,1755603034342,-480.0,0.00019178,2]
[380191386,1755603034352,-480.0,0.00019178,2]
[380191387,1755603034362,-480.0,0.00019178,2]
[380191388,1755603034371,-480.0,0.00019178,2]
[380191389,1755603034381,-480.0,0.00019178,2]
[380191390,1755603034391,-480.0,0.00019178,2]
[380191391,1755603034400,-460.0,0.00019178,2]
[380191392,1755603034410,-480.0,0.00019178,2]
[380191393,1755603034419,-480.0,0.00019178,2]
[380191394,1755603034429,-460.0,0.00019178,2]
[380191395,1755603034438,-480.0,0.00019178,2]
[380191396,1755603034447,-480.0,0.00019178,2]
[380191397,1755603034456,-480.0,0.00019178,2]
[380191398,1755603034466,-480.0,0.00019178,2]
[380191399,1755603034475,-480.0,0.00019178,2]
[380191400,1755603034484,-500.0,0.00019178,2]
[380191401,1755603034494,-500.0,0.00019178,2]
[380191402,1755603034503,-480.0,0.00019178,2]
[380191403,1755603034513,-500.0,0.00019178,2]
[380191404,1755603034523,-500.0,0.00019178,2]
[380191405,1755603034532,-500.0,0.00019178,2]
[380191406,1755603034542,-500.0,0.00019178,2]
[380191407,1755603034552,-500.0,0.00019178,2]
[380191408,1755603034562,-441.03147058,0.00019178,2]
[380191409,1755603034572,-500.0,0.00019178,2]
[380191410,1755603034582,-500.0,0.00019178,2]
[380191411,1755603034592,-460.0,0.00019178,2]
[380191412,1755603034603,-480.0,0.00019178,2]
[380191413,1755603034613,-480.0,0.00019178,2]
[380191414,1755603034623,-460.0,0.00019178,2]
[380191415,1755603034633,-460.0,0.00019178,2]
[380191416,1755603034643,-480.0,0.00019178,2]
[380191417,1755603034653,-480.0,0.00019178,2]
[380191418,1755603034663,-480.0,0.00019178,2]
[380191419,1755603034672,-480.0,0.00019178,2]
[380191420,1755603034682,-480.0,0.00019178,2]
[380191421,1755603034692,-480.0,0.00019178,2]
[380191422,1755603034701,-329.33654808,0.00019178,2]
[380191423,1755603034710,-480.0,0.00019178,2]
[380191424,1755603034720,-480.0,0.00019178,2]
[380191425,1755603034729,-480.0,0.00019178,2]
[380191426,1755603034738,-480.0,0.00019178,2]
[380191427,1755603034748,-460.0,0.00019178,2]
[380191428,1755603034757,-480.0,0.00019178,2]
[380191429,1755603034767,-473.81925101,0.00019178,2]
[380191430,1755603034776,-480.0,0.00019178,2]
[380191431,1755603034785,-480.0,0.00019178,2]
[380191432,1755603034795,-480.0,0.00019178,2]
[380191433,1755603034806,-480.0,0.00019178,2]
[380191434,1755603034820,-480.0,0.00019178,2]
[380191435,1755603034831,-480.0,0.00019178,2]
[380191436,1755603034840,-480.0,0.00019178,2]
[380191437,1755603034851,-480.0,0.00019178,2]
[380191438,1755603034860,-480.0,0.00019178,2]
[380191439,1755603034869,-480.0,0.00019178,2]
[380191440,1755603034879,-480.0,0.00019178,2]
[380191441,1755603034890,-480.0,0.00019178,2]
[380191442,1755603034900,-440.0,0.00019178,2]
[380191443,1755603034909,-480.0,0.00019178,2]
[380191444,1755603034918,-351.44636609,0.00019178,2]
[380191445,1755603034928,-480.0,0.00019178,2]
[380191446,1755603034938,-480.0,0.00019178,2]
[380191447,1755603034948,-480.0,0.00019178,2]
[380191448,1755603034961,-480.0,0.00019178,2]
[380191449,1755603034971,-480.0,0.00019178,2]
[380191450,1755603034980,-480.0,0.00019178,2]
[380191451,1755603034990,-480.0,0.00019178,2]
[380191452,1755603034999,-480.0,0.00019178,2]
[380191453,1755603035010,-480.0,0.00019178,2]
[380191454,1755603035019,-480.0,0.00019178,2]
[380191455,1755603035028,-185.20558183,0.00019178,2]
[380191456,1755603035038,-166.75062327,0.00019178,2]
[380191457,1755603035048,-480.0,0.00019178,2]
[380191458,1755603035057,-480.0,0.00019178,2]
[380191459,1755603035067,-480.0,0.00019178,2]
[380191460,1755603035076,-480.0,0.00019178,2]
[380191461,1755603035086,-922.39,0.00019178,2]
[380191462,1755603035096,-482.44467574,0.00019178,2]
[380191463,1755603035106,-480.0,0.00019178,2]
[380191464,1755603035116,-480.0,0.00019178,2]
[380191465,1755603035126,-501.35720531,0.00019178,2]
[380191466,1755603035135,-480.0,0.00019178,2]
[380191467,1755603035144,-480.0,0.00019178,2]
[380191468,1755603035154,-480.0,0.00019178,2]
[380191469,1755603035164,-480.0,0.00019178,2]
[380191470,1755603035173,-480.0,0.00019178,2]
[380191471,1755603035183,-480.0,0.00019178,2]
[380191472,1755603035193,-480.0,0.00019178,2]
[380191473,1755603035202,-480.0,0.00019178,2]
[380191474,1755603035211,-480.0,0.00019178,2]
[380191475,1755603035221,-480.0,0.00019178,2]
[380191476,1755603035230,-480.0,0.00019178,2]
[380191477,1755603035240,-480.0,0.00019178,2]
[380191478,1755603035249,-480.0,0.00019178,2]
[380191479,1755603035259,-480.0,0.00019178,2]
[380191480,1755603035268,-480.0,0.00019178,2]
[380191481,1755603035278,-480.0,0.00019178,2]
[380191482,1755603035287,-480.0,0.00019178,2]
[380191483,1755603035296,-480.0,0.00019178,2]
[380191484,1755603035306,-174.17599034,0.00019178,2]
[380191485,1755603035315,-480.0,0.00019178,2]
[380191486,1755603035324,-480.0,0.00019178,2]
[380191487,1755603035333,-480.0,0.00019178,2]
[380191488,1755603035343,-480.0,0.00019178,2]
[380191489,1755603035353,-398.32930879,0.00019178,2]
[380191490,1755603035362,-480.0,0.00019178,2]
[380191491,1755603035372,-481.33996938,0.00019178,2]
[380191492,1755603035382,-355.48758265,0.00019178,2]
[380191493,1755603035391,-480.0,0.00019178,2]
[380191494,1755603035400,-287.18090763,0.00019178,2]
[380191495,1755603035450,-192.81909237,0.00019178,2]
[380191496,1755603035459,-480.0,0.00019178,2]
[380191497,1755603035468,-480.0,0.00019178,2]
[380191498,1755603035477,-482.23428221,0.00019178,2]
[380191499,1755603035486,-480.0,0.00019178,2]
[380191500,1755603035496,-480.0,0.00019178,2]
[380191501,1755603035505,-480.0,0.00019178,2]
[380191502,1755603035514,-480.0,0.00019178,2]
[380191503,1755603035524,-480.0,0.00019178,2]
[380191504,1755603035534,-480.0,0.00019178,2]
[380191505,1755603035543,-480.0,0.00019178,2]
[380191506,1755603035552,-480.0,0.00019178,2]
[380191507,1755603035562,-480.0,0.00019178,2]
[380191508,1755603035571,-480.0,0.00019178,2]
[380191509,1755603035581,-752.47,0.00019178,2]
[380191510,1755603035590,-480.0,0.00019178,2]
[380191511,1755603035600,-616.15646803,0.00019178,2]
[380191512,1755603035610,-277.32096411,0.00019178,2]
[380191513,1755603035626,-202.67903589,0.00019178,2]
[380191514,1755603035635,-480.0,0.00019178,2]
[380191515,1755603035644,-480.0,0.00019178,2]
[380191516,1755603035654,-262.08639041,0.00019178,2]
[380191517,1755603035663,-480.0,0.00019178,2]
[380191518,1755603035672,-480.0,0.00019178,2]
[380191519,1755603035682,-480.0,0.00019178,2]
[380191520,1755603035691,-480.0,0.00019178,2]
[380191521,1755603035701,-480.0,0.00019178,2]
[380191522,1755603035711,-480.0,0.00019178,2]
[380191523,1755603035720,-480.0,0.00019178,2]
[380191524,1755603035729,-480.0,0.00019178,2]
[380191525,1755603035738,-480.0,0.00019178,2]
[380191526,1755603035747,-460.0,0.00019178,2]
[380191527,1755603035757,-4782.85,0.00019178,2]
[380191528,1755603035766,-480.0,0.00019178,2]
[380191529,1755603035775,-481.62265898,0.00019178,2]
[380191530,1755603035785,-480.0,0.00019178,2]
[380191531,1755603035795,-480.0,0.00019178,2]
[380191532,1755603035804,-480.0,0.00019178,2]
[380191533,1755603035816,-480.0,0.00019178,2]
[380191534,1755603035825,-480.0,0.00019178,2]
[380191535,1755603035834,-480.0,0.00019178,2]
[380191536,1755603035844,-480.0,0.00019178,2]
[380191537,1755603035854,-480.0,0.00019178,2]
[380191538,1755603035937,-480.0,0.00019178,2]
[380191539,1755603035959,-480.0,0.00019178,2]
[380191540,1755603035969,-460.0,0.00019178,2]
[380191541,1755603035978,-480.0,0.00019178,2]
[380191542,1755603035987,-480.0,0.00019178,2]
[380191543,1755603035997,-480.0,0.00019178,2]
[380191544,1755603036007,-480.0,0.00019178,2]
[380191545,1755603036016,-480.0,0.00019178,2]
[380191546,1755603036025,-203.03278108,0.00019178,2]
[380191547,1755603036034,-480.0,0.00019178,2]
[380191548,1755603036043,-480.0,0.00019178,2]
[380191549,1755603036052,-480.0,0.00019178,2]
[380191550,1755603036062,-480.0,0.00019178,2]
[380191551,1755603036072,-480.0,0.00019178,2]
[380191552,1755603036081,-480.0,0.00019178,2]
[380191553,1755603036091,-460.0,0.00019178,2]
[380191554,1755603036100,-480.0,0.00019178,2]
[380191555,1755603036110,-480.0,0.00019178,2]
[380191556,1755603036120,-480.0,0.00019178,2]
[380191557,1755603036129,-480.0,0.00019178,2]
[380191558,1755603036139,-480.0,0.00019178,2]
[380191559,1755603036148,-480.0,0.00019178,2]
[380191560,1755603036159,-480.0,0.00019178,2]
[380191561,1755603036169,-2251.49,0.00019178,2]
[380191562,1755603036178,-480.0,0.00019178,2]
[380191563,1755603036188,-482.29603929,0.00019178,2]
[380191564,1755603036198,-480.0,0.00019178,2]
[380191565,1755603036207,-480.0,0.00019178,2]
[380191566,1755603036216,-480.0,0.00019178,2]
[380191567,1755603036226,-480.0,0.00019178,2]
[380191568,1755603036236,-480.0,0.00019178,2]
[380191569,1755603036245,-480.0,0.00019178,2]
[380191570,1755603036254,-480.0,0.00019178,2]
[380191571,1755603036264,-480.0,0.00019178,2]
[380191572,1755603036274,-480.0,0.00019178,2]
[380191573,1755603036283,-480.0,0.00019178,2]
[380191574,1755603036292,-480.0,0.00019178,2]
[380191575,1755603036301,-480.0,0.00019178,2]
[380191576,1755603036311,-480.0,0.00019178,2]
[380191577,1755603036320,-480.0,0.00019178,2]
[380191578,1755603036330,-484.63,0.00019178,2]
[380191579,1755603036340,-480.0,0.00019178,2]
[380191580,1755603036349,-480.0,0.00019178,2]
[380191581,1755603036358,-480.0,0.00019178,2]
[380191582,1755603036368,-480.0,0.00019178,2]
[380191583,1755603036379,-737.85,0.00019178,2]
[380191584,1755603036388,-480.0,0.00019178,2]
[380191585,1755603036397,-447.90879114,0.00019178,2]
[380191586,1755603036407,-480.0,0.00019178,2]
[380191587,1755603036417,-480.0,0.00019178,2]
[380191588,1755603036426,-480.0,0.00019178,2]
[380191589,1755603036435,-1236.96,0.00019178,2]
[380191590,1755603036445,-480.0,0.00019178,2]
[380191591,1755603036454,-480.0,0.00019178,2]
[380191592,1755603036463,-480.0,0.00019178,2]
[380191593,1755603036473,-729.71,0.00019178,2]
[380191594,1755603036482,-480.0,0.00019178,2]
[380191595,1755603036492,-322.55528456,0.00019178,2]
[380191596,1755603036501,-264.82678649,0.00019178,2]
[380191597,1755603036516,-215.17321351,0.00019178,2]
[380191598,1755603036526,-480.0,0.00019178,2]
[380191599,1755603036535,-500.0,0.00019178,2]
[380191600,1755603036544,-1003.42306132,0.00019178,2]
[380191601,1755603036553,-500.0,0.00019178,2]
[380191602,1755603036562,-500.0,0.00019178,2]
[380191603,1755603036572,-500.0,0.00019178,2]
[380191604,1755603036582,-500.0,0.00019178,2]
[380191605,1755603036591,-500.0,0.00019178,2]
[380191606,1755603036600,-480.0,0.00019178,2]